fUST/lending_fUST_20251025
["ID","MTS","AMOUNT","RATE_DAILY","PERIOD"]
[392353377,1761396258359,-2254.63,0.00018437,2]
[392353378,1761396258386,-492.83,0.00018437,2]
[392353379,1761396264752,5000.0,0.00018297,2]
[392353380,1761396276480,-1769.52,0.00018435,2]
[392353381,1761396276509,-500.0,0.00018436,2]
[392353382,1761396276539,-500.0,0.00018436,2]
[392353383,1761396276567,-1593.41,0.00018436,2]
[392353384,1761396280168,5000.0,0.00018297,2]
[392353385,1761396282398,-983.09,0.00018436,2]
[392353386,1761396282428,-1325.67,0.00018437,2]
[392353387,1761396282458,-500.0,0.00018437,2]
[392353388,1761396282495,-2085.32,0.00018437,2]
[392353389,1761396288251,2569.38040925,0.00018297,2]
[392353390,1761396288375,-500.58436852,0.00018435,2]
[392353391,1761396288404,-500.0,0.00018436,2]
[392353392,1761396288434,-211.85,0.00018437,2]
[392353393,1761396288464,-500.0,0.00018437,2]
[392353394,1761396288492,-500.0,0.00018437,2]
[392353395,1761396288519,-1139.07,0.00018437,2]
[392353396,1761396288547,-500.0,0.00018437,2]
[392353397,1761396288575,-500.0,0.00018437,2]
[392353398,1761396288608,-500.0,0.00018437,2]
[392353399,1761396303667,5000.0,0.00018297,2]
[392353400,1761396306608,-500.0,0.00018436,2]
[392353401,1761396306643,-300.0,0.00018436,2]
[392353402,1761396306674,-300.0,0.00018436,2]
[392353403,1761396306706,-300.0,0.00018436,2]
[392353404,1761396306739,-500.0,0.00018436,2]
[392353405,1761396306768,-813.71,0.00018437,2]
[392353406,1761396306799,-165.07645529,0.00018437,2]
[392353407,1761396306831,-500.0,0.00018437,2]
[392353408,1761396306860,-896.26,0.00018437,2]
[392353409,1761396306889,-595.37,0.00018437,2]
[392353410,1761396309452,-1355.59,0.00018435,2]
[392353411,1761396309486,-1200.0,0.00018435,2]
[392353412,1761396309515,-1273.14,0.00018437,2]
[392353413,1761396309544,-1127.08,0.00018437,2]
[392353414,1761396311698,3563.32959075,0.00018297,2]
[392353415,1761396312488,-1780.23,0.00018436,2]
[392353416,1761396312518,-500.0,0.00018436,2]
[392353417,1761396312547,-88.39,0.00018437,2]
[392353418,1761396312575,-1202.47,0.00018437,2]
[392353419,1761396312602,-500.0,0.00018437,2]
[392353420,1761396312633,-723.38,0.00018437,2]
[392353421,1761396315488,-411.07,0.00018437,2]
[392353422,1761396315518,-504.3347204,0.00018437,2]
[392353423,1761396315547,-500.0,0.00018437,2]
[392353424,1761396315577,-573.47,0.00018437,2]
[392353425,1761396315605,-500.0,0.00018437,2]
[392353426,1761396315633,-500.0,0.00018437,2]
[392353427,1761396315667,-1786.63,0.00018437,2]
[392353428,1761396327274,5000.0,0.00018297,2]
[392353429,1761396333706,-1860.77,0.00018435,2]
[392353430,1761396333747,-1436.39,0.00018435,2]
[392353431,1761396333787,-500.0,0.00018436,2]
[392353432,1761396333825,-500.0,0.00018436,2]
[392353433,1761396335609,5000.0,0.00018297,2]
[392353434,1761396336551,-1491.02,0.00018436,2]
[392353435,1761396336584,-953.0,0.00018436,2]
[392353436,1761396336617,-500.0,0.00018436,2]
[392353437,1761396336652,-1533.04,0.00018436,2]
[392353438,1761396342687,-500.0,0.00018435,2]
[392353439,1761396342721,-1878.84,0.00018437,2]
[392353440,1761396342755,-2545.48,0.00018437,2]
[392353441,1761396348743,-2544.12,0.00018436,2]
[392353442,1761396348776,-875.5603236,0.00018436,2]
[392353443,1761396350953,5000.0,0.00018297,2]
[392353444,1761396351696,-205.68315899,0.00018335,2]
[392353445,1761396351730,-3160.6493528,0.00018436,2]
[392353446,1761396351761,-1051.82,0.00018436,2]
[392353447,1761396351792,-151.37,0.00018437,2]
[392353448,1761396357725,-2278.89,0.00018437,2]
[392353449,1761396357755,-500.0,0.00018437,2]
[392353450,1761396357784,-500.0,0.00018437,2]
[392353451,1761396357813,-685.16,0.00018437,2]
[392353452,1761396357844,-490.14799825,0.00018437,2]
[392353453,1761396357873,-500.0,0.00018437,2]
[392353454,1761396358985,5000.0,0.00018297,2]
[392353455,1761396363672,-894.12,0.00018435,2]
[392353456,1761396363702,-597.91,0.00018436,2]
[392353457,1761396363735,-300.0,0.00018436,2]
[392353458,1761396363764,-2466.18730634,0.00018437,2]
[392353459,1761396363792,-500.0,0.00018437,2]
[392353460,1761396374433,5000.0,0.00018297,2]
[392353463,1761396378582,891.966678,0.00013699,2]
[392353464,1761396382416,5000.0,0.00018297,2]
[392353465,1761396383591,196.0,0.00016,2]
[392353466,1761396384274,196.0,0.00016117,2]
[392353467,1761396385190,196.0,0.00016233,2]
[392353468,1761396385664,196.0,0.0001635,2]
[392353469,1761396385915,196.0,0.00016467,2]
[392353470,1761396386158,196.0,0.00016583,2]
[392353471,1761396386401,196.0,0.000167,2]
[392353472,1761396386661,196.0,0.00016817,2]
[392353473,1761396387309,196.0,0.00016933,2]
[392353474,1761396387996,196.0,0.0001705,2]
[392353475,1761396388254,196.0,0.00017167,2]
[392353476,1761396388495,196.0,0.00017283,2]
[392353477,1761396388747,196.0,0.000174,2]
[392353478,1761396389019,196.0,0.00017517,2]
[392353479,1761396389267,196.0,0.00017633,2]
[392353480,1761396392574,196.0,0.0001775,2]
[392353481,1761396393054,196.0,0.00017867,2]
[392353482,1761396393170,196.0,0.00017983,2]
[392353483,1761396393404,314.00264945,0.000181,2]
[392353484,1761396396947,-500.0,0.00018435,2]
[392353485,1761396396976,-2126.77,0.00018436,2]
[392353486,1761396397007,-1198.33,0.00018436,2]
[392353487,1761396398423,5000.0,0.00018297,2]
[392353488,1761396399776,-2595.94,0.00018435,2]
[392353489,1761396399808,-2349.81,0.00018436,2]
[392353490,1761396405782,-1441.47,0.00018436,2]
[392353491,1761396405813,-1105.89,0.00018436,2]
[392353492,1761396405843,-500.0,0.00018436,2]
[392353493,1761396405873,-500.0,0.00018436,2]
[392353494,1761396405902,-500.0,0.00018437,2]
[392353495,1761396405931,-518.017761,0.00018437,2]
[392353496,1761396405961,-369.254478,0.00018437,2]
[392353497,1761396406592,5000.0,0.00018297,2]
[392353498,1761396422257,5000.0,0.00018297,2]
[392353499,1761396430221,4857.54467775,0.00018297,2]
[392353500,1761396439119,-944.29,0.00018435,2]
[392353501,1761396439150,-896.27,0.00018435,2]
[392353502,1761396439183,-2175.13,0.00018436,2]
[392353503,1761396439215,-266.39,0.00018436,2]
[392353504,1761396439304,-1333.26009685,0.00018436,2]
[392353505,1761396444967,-102.58990315,0.00018436,2]
[392353506,1761396444999,-1118.37,0.00018436,2]
[392353507,1761396445030,-300.0,0.00018436,2]
[392353508,1761396445059,-293.92697803,0.00018436,2]
[392353509,1761396445092,-500.0,0.00018436,2]
[392353510,1761396445120,-500.0,0.00018436,2]
[392353511,1761396445152,-1686.26623764,0.00018436,2]
[392353512,1761396445281,-997.70376236,0.00018436,2]
[392353513,1761396445573,5000.0,0.00018297,2]
[392353514,1761396450963,-500.0,0.00018436,2]
[392353515,1761396450993,-500.0,0.00018436,2]
[392353516,1761396451022,-1053.46,0.00018436,2]
[392353517,1761396451050,-500.0,0.00018436,2]
[392353518,1761396451079,-500.0,0.00018436,2]
[392353519,1761396451108,-130.745522,0.00018437,2]
[392353520,1761396451138,-869.22,0.00018437,2]
[392353521,1761396451168,-500.0,0.00018437,2]
[392353522,1761396451196,-393.158956,0.00018437,2]
[392353523,1761396451353,-106.841044,0.00018437,2]
[392353524,1761396468466,5000.0,0.00018297,2]
[392353526,1761396491831,5000.0,0.00018297,2]
[392353527,1761396498139,482.0,0.00030137,120]
[392353528,1761396502256,776.0,0.00018,2]
[392353529,1761396503766,379.40876304,0.00016,2]
[392353530,1761396528483,888.26,0.00030137,120]
[392353531,1761396545149,7701.65,0.00018297,2]
[392353538,1761396574454,-213.76324396,0.00018337,2]
[392353539,1761396574483,-338.50383103,0.00018343,2]
[392353540,1761396574513,-1913.79288832,0.00018348,2]
[392353541,1761396574543,-300.0,0.00018434,2]
[392353542,1761396574575,-500.0,0.00018435,2]
[392353543,1761396574604,-561.54,0.00018435,2]
[392353544,1761396574740,-2344.81007338,0.00018435,2]
[392353545,1761396580336,-1205.12992662,0.00018435,2]
[392353546,1761396580365,-500.0,0.00018435,2]
[392353547,1761396580395,-500.0,0.00018436,2]
[392353548,1761396580425,-1200.0,0.00018436,2]
[392353549,1761396580453,-500.0,0.00018436,2]
[392353550,1761396580484,-29.06014676,0.00018436,2]
[392353551,1761396580589,-2131.62985324,0.00018436,2]
[392353552,1761396580947,5000.0,0.00018297,2]
[392353553,1761396603835,5000.0,0.00018297,2]
[392353644,1761396636126,-162.56442228,0.00018337,2]
[392353645,1761396636135,-162.56442227,0.00018428,2]
[392353646,1761396636145,-300.0,0.00018435,2]
[392353647,1761396636154,-300.0,0.00018435,2]
[392353648,1761396636163,-300.0,0.00018435,2]
[392353649,1761396636172,-1200.0,0.00018435,2]
[392353650,1761396636181,-300.0,0.00018435,2]
[392353651,1761396636192,-3593.59,0.00018435,2]
[392353652,1761396636202,-820.27,0.00018436,2]
[392353653,1761396636211,-500.0,0.00018436,2]
[392353654,1761396636221,-1742.73,0.00018436,2]
[392353655,1761396636230,-779.81,0.00018436,2]
[392353656,1761396636239,-500.0,0.00018436,2]
[392353657,1761396636249,-1091.61,0.00018436,2]
[392353658,1761396636258,-1098.14,0.00018436,2]
[392353659,1761396636267,-163.66929037,0.00018436,2]
[392353660,1761396636276,-221.8910611,0.00018436,2]
[392353661,1761396636285,-858.92,0.00018436,2]
[392353662,1761396636294,-1602.45,0.00018436,2]
[392353663,1761396636303,-991.63,0.00018436,2]
[392353664,1761396636312,-1164.82,0.00018436,2]
[392353665,1761396636322,-500.0,0.00018436,2]
[392353666,1761396636331,-500.0,0.00018436,2]
[392353667,1761396636340,-1712.19,0.00018436,2]
[392353668,1761396636349,-2584.48,0.00018436,2]
[392353669,1761396636359,-500.0,0.00018436,2]
[392353670,1761396636368,-500.0,0.00018436,2]
[392353671,1761396636378,-500.0,0.00018436,2]
[392353672,1761396636387,-1428.89,0.00018436,2]
[392353673,1761396636396,-500.0,0.00018436,2]
[392353674,1761396636405,-1706.05,0.00018436,2]
[392353675,1761396636414,-500.0,0.00018436,2]
[392353676,1761396636423,-500.0,0.00018436,2]
[392353677,1761396636432,-500.0,0.00018436,2]
[392353678,1761396636443,-1469.16,0.00018436,2]
[392353679,1761396636452,-781.97,0.00018436,2]
[392353680,1761396636462,-913.29,0.00018436,2]
[392353681,1761396636471,-1022.73,0.00018436,2]
[392353682,1761396636480,-2438.11,0.00018436,2]
[392353683,1761396636490,-1007.99,0.00018436,2]
[392353684,1761396636500,-662.69,0.00018436,2]
[392353685,1761396636511,-1790.34,0.00018436,2]
[392353686,1761396636520,-2038.16,0.00018436,2]
[392353687,1761396636529,-500.0,0.00018436,2]
[392353688,1761396636539,-500.0,0.00018436,2]
[392353689,1761396636548,-3400.3,0.00018436,2]
[392353690,1761396636558,-500.0,0.00018437,2]
[392353691,1761396636567,-567.29040347,0.00018437,2]
[392353692,1761396636576,-500.0,0.00018437,2]
[392353693,1761396636585,-500.0,0.00018437,2]
[392353694,1761396636595,-536.01,0.00018437,2]
[392353695,1761396636603,-500.0,0.00018437,2]
[392353696,1761396636613,-500.0,0.00018437,2]
[392353697,1761396636622,-500.0,0.00018437,2]
[392353698,1761396636631,-500.0,0.00018437,2]
[392353699,1761396636640,-1574.08,0.00018437,2]
[392353700,1761396636649,-500.0,0.00018437,2]
[392353701,1761396636659,-154.5681922,0.00018437,2]
[392353702,1761396636668,-500.0,0.00018437,2]
[392353703,1761396636677,-1147.46,0.00018437,2]
[392353704,1761396636688,-500.0,0.00018437,2]
[392353705,1761396636697,-531.71,0.00018437,2]
[392353706,1761396636706,-500.0,0.00018437,2]
[392353707,1761396636716,-500.0,0.00018437,2]
[392353708,1761396636725,-500.0,0.00018437,2]
[392353709,1761396636734,-500.0,0.00018437,2]
[392353710,1761396636744,-1250.0,0.00018437,2]
[392353711,1761396636753,-507.88617476,0.00018437,2]
[392353712,1761396636762,-1574.74,0.00018437,2]
[392353713,1761396636771,-500.0,0.00018437,2]
[392353714,1761396636781,-542.28,0.00018437,2]
[392353715,1761396636792,-500.0,0.00018437,2]
[392353716,1761396636803,-500.0,0.00018437,2]
[392353717,1761396636812,-500.0,0.00018437,2]
[392353718,1761396636822,-500.0,0.00018437,2]
[392353719,1761396636831,-500.0,0.00018437,2]
[392353720,1761396636841,-626.72,0.00018437,2]
[392353721,1761396636850,-500.0,0.00018437,2]
[392353722,1761396636860,-500.0,0.00018437,2]
[392353723,1761396636871,-500.0,0.00018437,2]
[392353724,1761396636881,-500.0,0.00018437,2]
[392353725,1761396636890,-500.0,0.00018437,2]
[392353726,1761396636899,-500.0,0.00018437,2]
[392353727,1761396636908,-641.57,0.00018437,2]
[392353728,1761396636918,-500.0,0.00018437,2]
[392353729,1761396636927,-500.0,0.00018437,2]
[392353730,1761396636937,-556.35100612,0.00018437,2]
[392353731,1761396636946,-358.30777749,0.00018437,2]
[392353732,1761396636956,-500.0,0.00018437,2]
[392353733,1761396636966,-965.59,0.00018437,2]
[392353734,1761396636977,-500.0,0.00018437,2]
[392353735,1761396636987,-500.0,0.00018437,2]
[392353736,1761396636996,-500.0,0.00018437,2]
[392353737,1761396637005,-500.0,0.00018437,2]
[392353738,1761396637015,-1590.95,0.00018437,2]
[392353739,1761396637024,-590.38,0.00018437,2]
[392353740,1761396637033,-797.32,0.00018437,2]
[392353741,1761396637041,-557.3,0.00018437,2]
[392353742,1761396637050,-500.0,0.00018437,2]
[392353743,1761396637059,-500.0,0.00018437,2]
[392353744,1761396637067,-1031.33,0.00018437,2]
[392353745,1761396637076,-2217.46,0.00018437,2]
[392353746,1761396637085,-500.0,0.00018437,2]
[392353747,1761396637094,-500.0,0.00018437,2]
[392353748,1761396637103,-500.0,0.00018437,2]
[392353749,1761396637112,-1979.14,0.00018437,2]
[392353750,1761396637120,-500.0,0.00018437,2]
[392353751,1761396637129,-500.0,0.00018437,2]
[392353752,1761396637138,-500.0,0.00018437,2]
[392353753,1761396637147,-500.0,0.00018437,2]
[392353754,1761396637156,-1296.34,0.00018437,2]
[392353755,1761396637164,-500.0,0.00018437,2]
[392353756,1761396637173,-1801.85,0.00018437,2]
[392353757,1761396637183,-502.95574722,0.00018437,2]
[392353758,1761396637193,-1248.98,0.00018437,2]
[392353759,1761396637202,-500.0,0.00018437,2]
[392353760,1761396637211,-500.0,0.00018437,2]
[392353761,1761396637221,-500.0,0.00018437,2]
[392353762,1761396637230,-500.0,0.00018437,2]
[392353763,1761396637239,-500.0,0.00018437,2]
[392353764,1761396637249,-1806.49,0.00018437,2]
[392353765,1761396637259,-500.0,0.00018437,2]
[392353766,1761396637267,-500.0,0.00018437,2]
[392353767,1761396637276,-500.0,0.00018437,2]
[392353768,1761396637285,-500.0,0.00018437,2]
[392353769,1761396637295,-561.51,0.00018437,2]
[392353770,1761396637304,-500.0,0.00018437,2]
[392353771,1761396637313,-527.3,0.00018437,2]
[392353772,1761396637323,-500.0,0.00018437,2]
[392353773,1761396637332,-500.0,0.00018437,2]
[392353774,1761396637342,-504.10841005,0.00018437,2]
[392353775,1761396637351,-500.0,0.00018437,2]
[392353776,1761396637360,-1632.52,0.00018437,2]
[392353777,1761396637369,-695.86,0.00018437,2]
[392353778,1761396637378,-1907.82,0.00018437,2]
[392353779,1761396637386,-500.0,0.00018437,2]
[392353780,1761396637395,-500.0,0.00018437,2]
[392353781,1761396637404,-1200.9,0.00018437,2]
[392353782,1761396637413,-500.0,0.00018437,2]
[392353783,1761396637422,-500.0,0.00018437,2]
[392353784,1761396637430,-500.0,0.00018437,2]
[392353785,1761396637440,-500.0,0.00018437,2]
[392353786,1761396637449,-500.0,0.00018437,2]
[392353787,1761396637459,-500.0,0.00018437,2]
[392353788,1761396637469,-896.78,0.00018437,2]
[392353789,1761396637479,-500.0,0.00018437,2]
[392353790,1761396637489,-500.0,0.00018437,2]
[392353791,1761396637497,-1448.44,0.00018437,2]
[392353792,1761396637508,-1012.23,0.00018437,2]
[392353793,1761396637517,-1695.79,0.00018437,2]
[392353794,1761396637526,-500.0,0.00018437,2]
[392353795,1761396637535,-500.0,0.00018437,2]
[392353796,1761396637543,-500.0,0.00018437,2]
[392353797,1761396637552,-500.0,0.00018437,2]
[392353798,1761396637561,-558.57,0.00018437,2]
[392353799,1761396637570,-500.0,0.00018437,2]
[392353800,1761396637578,-864.07,0.00018437,2]
[392353801,1761396637588,-500.0,0.00018437,2]
[392353802,1761396637597,-521.45,0.00018437,2]
[392353803,1761396637608,-2201.45,0.00018437,2]
[392353804,1761396637618,-500.0,0.00018437,2]
[392353805,1761396637628,-500.0,0.00018437,2]
[392353806,1761396637637,-500.0,0.00018437,2]
[392353807,1761396637646,-500.0,0.00018437,2]
[392353808,1761396637654,-500.0,0.00018437,2]
[392353809,1761396637663,-500.34835137,0.00018437,2]
[392353810,1761396637672,-500.0,0.00018437,2]
[392353811,1761396637681,-500.0,0.00018437,2]
[392353812,1761396637691,-567.34,0.00018437,2]
[392353813,1761396637701,-1299.1,0.00018437,2]
[392353814,1761396637710,-1978.46292104,0.00018437,2]
[392353815,1761396637719,-500.0,0.00018437,2]
[392353816,1761396637728,-500.0,0.00018437,2]
[392353817,1761396637737,-500.0,0.00018437,2]
[392353818,1761396637746,-500.0,0.00018437,2]
[392353819,1761396637755,-500.0,0.00018437,2]
[392353820,1761396637764,-500.0,0.00018437,2]
[392353821,1761396637774,-500.0,0.00018437,2]
[392353822,1761396637783,-2300.12,0.00018437,2]
[392353824,1761396637795,-500.0,0.00018437,2]
[392353825,1761396637805,-534.83343898,0.00018437,2]
[392353826,1761396637814,-500.0,0.00018437,2]
[392353827,1761396637823,-500.0,0.00018437,2]
[392353828,1761396637832,-500.0,0.00018437,2]
[392353829,1761396637843,-500.0,0.00018437,2]
[392353830,1761396637851,-500.0,0.00018437,2]
[392353831,1761396637860,-500.0,0.00018437,2]
[392353832,1761396637870,-500.0,0.00018437,2]
[392353834,1761396637880,-500.0,0.00018437,2]
[392353835,1761396637889,-1376.54,0.00018437,2]
[392353836,1761396637898,-500.0,0.00018437,2]
[392353838,1761396637907,-500.0,0.00018437,2]
[392353840,1761396637916,-500.0,0.00018437,2]
[392353842,1761396637925,-500.0,0.00018437,2]
[392353843,1761396637934,-553.16,0.00018437,2]
[392353845,1761396637943,-1828.98,0.00018437,2]
[392353847,1761396637953,-549.58,0.00018437,2]
[392353848,1761396637962,-500.0,0.00018437,2]
[392353849,1761396637972,-500.0,0.00018437,2]
[392353850,1761396637982,-500.0,0.00018437,2]
[392353851,1761396637991,-500.0,0.00018437,2]
[392353852,1761396638000,-503.60601376,0.00018437,2]
[392353853,1761396638009,-1800.56,0.00018437,2]
[392353854,1761396638018,-507.07762639,0.00018437,2]
[392353855,1761396638028,-500.0,0.00018437,2]
[392353856,1761396638037,-500.0,0.00018437,2]
[392353857,1761396638046,-500.0,0.00018437,2]
[392353858,1761396638056,-500.0,0.00018437,2]
[392353859,1761396638066,-500.0,0.00018437,2]
[392353860,1761396638075,-500.0,0.00018437,2]
[392353861,1761396638084,-500.0,0.00018437,2]
[392353862,1761396638094,-518.14308713,0.00018437,2]
[392353863,1761396638102,-856.86,0.00018437,2]
[392353864,1761396638112,-500.0,0.00018437,2]
[392353865,1761396638121,-500.0,0.00018437,2]
[392353866,1761396638131,-500.0,0.00018437,2]
[392353867,1761396638140,-489.44082027,0.00018437,2]
[392353868,1761396638150,-500.0,0.00018437,2]
[392353869,1761396638159,-500.0,0.00018437,2]
[392353870,1761396638168,-546.94,0.00018437,2]
[392353871,1761396638177,-500.0,0.00018437,2]
[392353872,1761396638186,-500.0,0.00018437,2]
[392353873,1761396638196,-500.0,0.00018437,2]
[392353874,1761396638205,-500.0,0.00018437,2]
[392353875,1761396638214,-500.0,0.00018437,2]
[392353876,1761396638223,-500.0,0.00018437,2]
[392353877,1761396638232,-500.0,0.00018437,2]
[392353878,1761396638243,-1205.35,0.00018437,2]
[392353879,1761396638252,-500.0,0.00018437,2]
[392353880,1761396638261,-500.0,0.00018437,2]
[392353881,1761396638271,-394.79498066,0.00018437,2]
[392353882,1761396638280,-500.0,0.00018437,2]
[392353883,1761396638289,-500.0,0.00018437,2]
[392353884,1761396638299,-500.0,0.00018437,2]
[392353885,1761396638307,-500.0,0.00018437,2]
[392353886,1761396638317,-500.0,0.00018437,2]
[392353887,1761396638324,-505.15,0.00018437,2]
[392353888,1761396638333,-506.03684101,0.00018437,2]
[392353889,1761396638343,-1935.47,0.00018437,2]
[392353890,1761396638353,-500.0,0.00018437,2]
[392353891,1761396638362,-500.0,0.00018437,2]
[392353892,1761396638372,-504.60113556,0.00018437,2]
[392353893,1761396638381,-500.0,0.00018437,2]
[392353894,1761396638391,-2487.77,0.00018437,2]
[392353895,1761396638400,-500.0,0.00018437,2]
[392353896,1761396638410,-500.0,0.00018437,2]
[392353897,1761396638419,-500.0,0.00018437,2]
[392353898,1761396638429,-944.15,0.00018437,2]
[392353899,1761396638440,-904.94,0.00018437,2]
[392353900,1761396638449,-605.84717123,0.00018437,2]
[392353901,1761396638459,-500.0,0.00018437,2]
[392353902,1761396638469,-531.0,0.00018438,2]
[392353903,1761396638479,-500.0,0.00018438,2]
[392353904,1761396638489,-551.06,0.00018438,2]
[392353905,1761396638498,-500.0,0.00018438,2]
[392353906,1761396638507,-501.9253716,0.00018438,2]
[392353907,1761396638517,-551.19669721,0.00018438,2]
[392353908,1761396638526,-500.0,0.00018438,2]
[392353909,1761396638535,-500.0,0.00018438,2]
[392353910,1761396638544,-500.0,0.00018438,2]
[392353911,1761396638554,-500.0,0.00018438,2]
[392353912,1761396638563,-511.38452547,0.00018438,2]
[392353913,1761396638572,-600.19,0.00018438,2]
[392353914,1761396638581,-500.0,0.00018438,2]
[392353915,1761396638591,-500.0,0.00018438,2]
[392353916,1761396638600,-500.0,0.00018438,2]
[392353917,1761396638609,-500.0,0.00018438,2]
[392353918,1761396638618,-500.0,0.00018438,2]
[392353919,1761396638628,-500.0,0.00018438,2]
[392353920,1761396638637,-505.80419241,0.00018438,2]
[392353921,1761396638647,-1286.2,0.00018438,2]
[392353922,1761396638656,-1365.61,0.00018438,2]
[392353923,1761396638666,-500.0,0.00018438,2]
[392353924,1761396638675,-500.0,0.00018438,2]
[392353925,1761396638684,-500.0,0.00018438,2]
[392353926,1761396638695,-500.0,0.00018438,2]
[392353927,1761396638704,-501.46319642,0.00018438,2]
[392353928,1761396638714,-500.63,0.00018438,2]
[392353929,1761396638724,-500.0,0.00018438,2]
[392353930,1761396638733,-500.0,0.00018438,2]
[392353931,1761396638743,-3516.97,0.00018438,2]
[392353932,1761396638753,-500.0,0.00018438,2]
[392353933,1761396638763,-500.0,0.00018438,2]
[392353934,1761396638772,-1000.0,0.00018438,2]
[392353935,1761396638782,-501.30447943,0.00018438,2]
[392353936,1761396638792,-500.0,0.00018438,2]
[392353937,1761396638806,-500.0,0.00018438,2]
[392353938,1761396638815,-491.23324546,0.00018438,2]
[392353939,1761396638825,-506.68403115,0.00018438,2]
[392353940,1761396638835,-500.0,0.00018438,2]
[392353941,1761396638845,-500.0,0.00018438,2]
[392353942,1761396638855,-500.53261289,0.00018438,2]
[392353943,1761396638864,-500.0,0.00018438,2]
[392353944,1761396638875,-239.35141201,0.00018438,2]
[392353945,1761396638884,-500.0,0.00018438,2]
[392353946,1761396638893,-500.0,0.00018438,2]
[392353947,1761396638903,-500.0,0.00018438,2]
[392353948,1761396638912,-500.0,0.00018438,2]
[392353949,1761396638922,-500.0,0.00018438,2]
[392353950,1761396638932,-500.0,0.00018438,2]
[392353951,1761396638943,-500.0,0.00018438,2]
[392353952,1761396638953,-500.0,0.00018438,2]
[392353953,1761396638962,-500.0,0.00018438,2]
[392353954,1761396638972,-505.00871797,0.00018438,2]
[392353955,1761396638982,-500.0,0.00018438,2]
[392353956,1761396638991,-500.0,0.00018438,2]
[392353957,1761396639001,-488.70816697,0.00018438,2]
[392353958,1761396639012,-500.0,0.00018438,2]
[392353959,1761396639022,-500.0,0.00018438,2]
[392353960,1761396639031,-500.0,0.00018438,2]
[392353961,1761396639041,-500.0,0.00018438,2]
[392353962,1761396639051,-500.0,0.00018438,2]
[392353963,1761396639061,-456.58978143,0.00018438,2]
[392353964,1761396639071,-2022.02,0.00018438,2]
[392353965,1761396639082,-500.0,0.00018438,2]
[392353966,1761396639092,-500.0,0.00018438,2]
[392353967,1761396639102,-532.4455306,0.00018438,2]
[392353968,1761396639111,-923.27,0.00018438,2]
[392353969,1761396639121,-462.07731295,0.00018438,2]
[392353970,1761396639130,-500.0,0.00018438,2]
[392353971,1761396639139,-500.0,0.00018438,2]
[392353972,1761396639149,-500.0,0.00018438,2]
[392353973,1761396639158,-500.0,0.00018438,2]
[392353974,1761396639168,-500.0,0.00018438,2]
[392353975,1761396639177,-500.0,0.00018438,2]
[392353976,1761396639187,-500.0,0.00018438,2]
[392353977,1761396639198,-500.0,0.00018438,2]
[392353978,1761396639208,-500.0,0.00018438,2]
[392353979,1761396639217,-500.0,0.00018438,2]
[392353980,1761396639227,-500.0,0.00018438,2]
[392353981,1761396639236,-500.0,0.00018438,2]
[392353982,1761396639247,-500.0,0.00018438,2]